Cogmind - Beta 17 @@@ ROGUE MODE // 2026.08.03 @ 19:52:17 Player: AzzyWazzy Result: Destroyed by D-53 Grenadier with Mini Grenade Launcher Performance ------------- Evolutions (1) 500 Regions Visited (4) 800 Robots Destroyed (38) 190 Value Destroyed (892) 892 Prototype IDs (1) 20 Alien Tech Used (0) 0 Bonus (0) 0 TOTAL SCORE: 2402 Bonus ------- None Cogmind --------- Core Integrity 0/400 Matter 26/300 Energy 100/100 System Corruption 1% Temperature Cool (0) Movement Core (350) Ox6 Location -9/Mines Parts ------- > --- POWER (2) -------- (None) > --- PROPULSION (2) --- (None) > --- UTILITY (3) ------ Large Storage Unit > --- WEAPON (2) ------- (None) > --- INVENTORY (15) --- Decoy Drone Bay (0/16) Small Laser Grenade Launcher Grenade Launcher Rocket Launcher Rocket Launcher Peak State ------------ > --- POWER ------------ Ion Engine Light Ion Engine > --- PROPULSION ------- Compact Wheel Compact Wheel > --- UTILITY ---------- Large Storage Unit Decoy Drone Bay > --- WEAPON ----------- Assault Rifle Rocket Launcher > --- INVENTORY -------- Light Armor Plating Small Laser Light Assault Rifle Grenade Launcher Grenade Launcher Grenade Launcher Grenade Launcher [Rating: 22] Favorites ----------- Power Ion Engine Engine Ion Engine Propulsion Compact Wheel Wheel Compact Wheel Utility Large Storage Unit Device Cooling System Storage Large Storage Unit Processor Targeting Computer Hackware Hacking Suite Protection Light Armor Plating Weapon Assault Rifle Energy Gun Small Laser Ballistic Gun Assault Rifle Ballistic Cannon Light Cannon Launcher Grenade Launcher Build | -11 -10 -10 -9 -9 ------- Run | Yrd Mat Min Mat Min Slots Evolved 2 | . . . 2 . Power 1 | . . . 1 . Propulsion . | . . . . . Utility 1 | . . . 1 . Weapon . | . . . . . Parts Attached 25 | 6 8 2 9 . Power 4 | 1 1 . 2 . Engine 4 | 1 1 . 2 . Core . | . . . . . Reactor . | . . . . . Propulsion 4 | 2 1 . 1 . Treads . | . . . . . Leg . | . . . . . Wheel 4 | 2 1 . 1 . Hover . | . . . . . Flight . | . . . . . Utility 8 | 1 4 . 3 . Device 2 | . . . 2 . Storage 2 | 1 1 . . . Processor 1 | . 1 . . . Hackware 1 | . 1 . . . Protection 2 | . 1 . 1 . Artifact . | . . . . . Weapon 9 | 2 2 2 3 . Energy Gun 1 | 1 . . . . Energy Cannon . | . . . . . Ballistic Gun 2 | 1 . . 1 . Ballistic Cannon 1 | . 1 . . . Launcher 5 | . 1 2 2 . Special Weapon . | . . . . . Impact Weapon . | . . . . . Slashing Weapon . | . . . . . Piercing Weapon . | . . . . . Special Melee Weapon . | . . . . . Unidentified Prototypes 1 | . . . 1 . Parts Lost 9 | . . . 4 5 Power 2 | . . . 1 1 Propulsion 2 | . . . . 2 Utility 2 | . . . 1 1 Weapon 3 | . . . 2 1 Highest Loss Streak 4 | . . . 3 4 To Critical Strikes . | . . . . . Average Backups 6 | 2 5 6 8 6 Power . | . . 1 . . Propulsion . | 1 . . . . Utility . | . . . 1 1 Weapon 4 | 1 3 5 6 5 Tool/Special . | . . . . . Unused Backups 7 | 1 4 . . 2 Power 1 | . 1 . . . Propulsion 3 | 1 2 . . . Utility . | . . . . . Weapon 3 | . 1 . . 2 Tool/Special . | . . . . . Average Slot Usage (%) 92 | . 98 98 92 60 Engine 16 | . 14 14 20 10 Wheel 24 | . 28 28 22 11 Device 5 | . . . 10 11 Storage 12 | . 14 14 11 11 Processor 2 | . 6 . . . Protection 6 | . 5 12 7 . Energy Gun 2 | . 5 . . . Ballistic Gun 12 | . 14 14 10 5 Launcher 9 | . 7 13 10 11 Peak Build Rating 22 | 6 9 10 22 10 Average Rating 9 | 3 6 7 14 8 On Entrance 6 | . 6 7 10 10 Avg Prop Armor Cover (%) . | . . . . . Naked Turns . | . . . . . Heaviest Build 48 | 13 33 32 48 31 Greatest Support 32 | 32 32 32 32 10 Greatest Overweight (x) 8 | 1 1 . 1 8 Average Overweight (x) . | . . . . 2 Largest Inventory Capacity 15 | 8 15 15 15 15 Average Capacity 14 | 6 13 15 15 15 Most Carried 11 | 5 9 10 11 7 Average Carried 7 | 3 5 6 8 7 Final Capacity 15 | 8 15 15 15 15 Final Carried 9 | 3 8 9 7 7 Class Distribution -------------------- 100% | Mutant Dominant Class ---------------- Mutant | -10/Materials Mutant | -10/Mines Mutant | -9/Materials Mutant | -9/Mines Resources | -11 -10 -10 -9 -9 ----------- Run | Yrd Mat Min Mat Min Matter Collected 837 | 239 139 124 330 5 Remotely . | . . . . . Salvage Created 584 | . 113 24 395 52 Parts 54 | . 14 3 28 9 Haulers Intercepted 2 | . . . 2 . Recyclers Shooed . | . . . . . Parts Field Recycled . | . . . . . Retrieved Matter . | . . . . . Parts Self-Destructed . | . . . . . Prevented . | . . . . . Parts Restored . | . . . . . Kills | -11 -10 -10 -9 -9 ------- Run | Yrd Mat Min Mat Min Combat Hostiles Destroyed 26 | . 6 3 13 4 Guns 4 | . 2 . 2 . AOE 22 | . 4 3 11 4 Classes Destroyed 8 | . 4 . 3 1 Worker 1 | . . . . 1 Builder 2 | . . . 2 . Hauler 2 | . . . 2 . Operator 3 | . 1 . 2 . Watcher 4 | . 3 . 1 . Swarmer 12 | . 3 3 3 3 Grunt 11 | . 3 . 7 1 Sentry 3 | . . . 3 . Best Kill Streak 6 | . 6 3 4 3 Combat Bots Only 5 | . 5 3 3 3 Max Kills in Single Turn 3 | . 3 3 2 2 Gunslinging . | . . . . . Exploded 3 | . 3 3 2 2 Melee . | . . . . . Uniques/NPCs Destroyed . | . . . . . Combat | -11 -10 -10 -9 -9 -------- Run | Yrd Mat Min Mat Min Hostile Shots Fired 88 | . 19 1 48 20 Missed 20 | . 3 . 14 3 Hits 68 | . 16 1 34 17 Projectile 68 | . 16 1 34 17 AOE 10 | . . . . 10 Critical Strikes 5 | . 1 . 4 . Damage Taken 1408 | . 214 22 625 547 Core 469 | . 42 . 131 296 Absorbed by Shields . | . . . . . Core Remaining (%) 91 | 100 . 83 . . Volleys Fired 72 | . 27 1 41 3 Largest 2 | . 2 2 2 2 Hottest 60 | . 60 50 53 50 Shots Fired 122 | . 48 2 66 6 Gun 75 | . 35 1 36 3 Cannon 3 | . 3 . . . Launcher 44 | . 10 1 30 3 Special . | . . . . . Kinetic 70 | . 30 1 36 3 Thermal 8 | . 8 . . . Explosive 44 | . 10 1 30 3 Electromagnetic . | . . . . . Robot Hit Streak 11 | . 3 1 11 1 Robot Miss Streak 7 | . 7 3 3 2 Penetration Max . | . . . . . Secondary Targets . | . . . . . Shots Hit Robots 54 | . 14 1 36 3 Core Hits 63 | . 18 3 36 6 Critical Kills . | . . . . . Critical Parts Destroyed . | . . . . . Critical Strikes . | . . . . . Melee Attacks . | . . . . . Impact . | . . . . . Slashing . | . . . . . Piercing . | . . . . . Sneak Attacks . | . . . . . Combat Hostiles . | . . . . . Follow-up Attacks . | . . . . . Damage Inflicted 2489 | . 676 118 1282 413 Guns 395 | . 180 . 215 . Cannons 16 | . 16 . . . Explosions 2078 | . 480 118 1067 413 Melee . | . . . . . Ramming . | . . . . . Kinetic 377 | . 162 . 215 . Thermal 296 | . 34 . 68 194 Explosive 1816 | . 480 118 999 219 Electromagnetic . | . . . . . Impact . | . . . . . Slashing . | . . . . . Piercing . | . . . . . Highest Corruption 2 | . 2 2 1 1 Average Corruption 1 | . 1 2 1 1 Corruption Purged . | . . . . . Corruption Blocked . | . . . . . Effects 7 | . 6 1 . . Matter Fused 3 | . 3 . . . Heat Flow Errors 1 | . 1 . . . Energy Discharges 1 | . 1 . . . Data Loss (minor) 1 | . . 1 . . Data Loss (major) 1 | . 1 . . . Overload Shots . | . . . . . Overflow Damage 95 | . 33 . 21 41 Projectiles . | . . . . . Explosions 95 | . 33 . 21 41 Melee . | . . . . . Knockbacks 1 | . 1 . . . Impact . | . . . . . Kinetic 1 | . 1 . . . Secondary . | . . . . . Self-Inflicted Damage 260 | . 37 16 153 54 Shots 9 | . 2 1 4 2 Rammed . | . . . . . Targets Rammed . | . . . . . Kicked . | . . . . . Crushed . | . . . . . Highest Temperature 272 | . 272 . 8 . Average Temperature 50 | . 65 . 5 . Received Heat Transfer 354 | . 87 . 243 24 Effects 1 | . 1 . . . Energy Bleed 1 | . 1 . . . Siege Activations . | . . . . . Martial Activations . | . . . . . Shielding Activations . | . . . . . Robots Disrupted . | . . . . . Combat Hostiles . | . . . . . Robots Corrupted . | . . . . . Combat Hostiles . | . . . . . Parts Fried . | . . . . . Impact Corruptions . | . . . . . Robots Melted . | . . . . . Combat Hostiles . | . . . . . Parts Melted . | . . . . . Heat Transferred 325 | . 75 . 50 200 Parts Sabotaged . | . . . . . Parts Stolen . | . . . . . Parts Stripped . | . . . . . Power Chain Reactions . | . . . . . Alert | -11 -10 -10 -9 -9 ------- Run | Yrd Mat Min Mat Min Maximum Alert Level 1 | . . . 1 1 Low Security (%) 88 | 100 100 100 80 47 Level 1 11 | . . . 19 52 Level 2 . | . . . . . Level 3 . | . . . . . Level 4 . | . . . . . Level 5 . | . . . . . High Security . | . . . . . Max Security . | . . . . . Peak Influence 324 | . 169 107 324 268 Initial 120 | . . 38 . 120 Average 92 | . 64 51 116 213 Influence Increases 1222 | . 293 79 632 218 Destroy 0b10 Robot/C 520 | . 120 60 260 80 Destroy 0b10 Robot/NC 60 | . 20 . 35 5 Destroy Leader 122 | . 36 10 66 10 Successful Hack 2 | . . . 2 . Disable Machine 165 | . 45 . 90 30 Destroy Structure 278 | . 57 9 179 33 Partial Spotted 15 | . 15 . . . Lose Combat Pursuer 60 | . . . . 60 Influence Decreases 1004 | . 194 178 324 308 Entered New Map 249 | . . 61 . 188 Time Decay 665 | . 194 117 284 70 Lost Part 90 | . . . 40 50 Squads Dispatched 2 | . 1 . 1 . Investigation . | . . . . . Extermination . | . . . . . Reinforcement 2 | . 1 . 1 . Assault . | . . . . . Garrison . | . . . . . Intercept . | . . . . . Searches Triggered . | . . . . . Construction Impeded . | . . . . . Haulers Reinforced . | . . . . . Active Scanning Responses . | . . . . . Cargo Convoy Interrupts . | . . . . . Stealth | -11 -10 -10 -9 -9 --------- Run | Yrd Mat Min Mat Min Distress Signals 4 | . 1 . 3 . Communications Jammed . | . . . . . Distress Signals . | . . . . . Times Spotted 46 | . 13 2 20 11 Peak Tracking Total 5 | . 5 3 3 3 Tactical Retreats 2 | . . . . 2 Traps | -11 -10 -10 -9 -9 ------- Run | Yrd Mat Min Mat Min Traps Triggered 3 | . 2 . 1 . Indirectly . | . . . . . Trap Hack Attempts . | . . . . . Triggered . | . . . . . Disarmed . | . . . . . Reprogrammed . | . . . . . Reused . | . . . . . Traps Extracted . | . . . . . Installed . | . . . . . Triggered . | . . . . . Machines | -11 -10 -10 -9 -9 ---------- Run | Yrd Mat Min Mat Min Machines Disabled 11 | . 3 . 6 2 Max in Single Turn 2 | . 1 . 1 2 Machines Repaired . | . . . . . Machines Dismantled . | . . . . . Machines Sabotaged . | . . . . . Overloaded Fab Kills . | . . . . . Hacking | -11 -10 -10 -9 -9 --------- Run | Yrd Mat Min Mat Min Machines Accessed 2 | . . 1 1 . Terminals . | . . . . . Fabricators . | . . . . . Repair Stations . | . . . . . Recycling Units . | . . . . . Scanalyzers 1 | . . . 1 . Garrison Access . | . . . . . Total Hacks 4 | . . 1 3 . Successful 4 | . . 1 3 . Failed . | . . . . . Catastrophic . | . . . . . Database Lockouts . | . . . . . Manual . | . . . . . Terminals . | . . . . . Fabricators . | . . . . . Repair Stations . | . . . . . Recycling Units . | . . . . . Scanalyzers 3 | . . . 3 . Garrison Access . | . . . . . Terminal Hacks 1 | . . 1 . . Open Door 1 | . . 1 . . Fabricator Hacks . | . . . . . Repair Station Hacks . | . . . . . Recycling Unit Hacks . | . . . . . Scanalyzer 3 | . . . 3 . Insert Component 1 | . . . 1 . Analyze 1 | . . . 1 . Retrieve Study 1 | . . . 1 . Garrison Access Hacks . | . . . . . Unauthorized Hacks . | . . . . . Terminals . | . . . . . Fabricators . | . . . . . Repair Stations . | . . . . . Recycling Units . | . . . . . Scanalyzers . | . . . . . Garrison Access . | . . . . . Data Cores Recovered 2 | . 1 . 1 . Used . | . . . . . Hacking Detections 1 | . . . 1 . Full Trace Events . | . . . . . Feedback Events . | . . . . . Feedback Blocked . | . . . . . Robot Schematics Acquired . | . . . . . Robots Built . | . . . . . Authchips . | . . . . . Time . | . . . . . Total Robot Build Rating . | . . . . . Part Schematics Acquired 1 | . . . 1 . Parts Built . | . . . . . Authchips . | . . . . . Time . | . . . . . Total Part Build Rating . | . . . . . Part Studies Acquired 1 | . . . 1 . Parts Repaired . | . . . . . Time . | . . . . . Parts Recycled . | . . . . . Recycled Matter . | . . . . . Retrieved Matter . | . . . . . Retrieved Components . | . . . . . Parts Scanalyzed 1 | . . . 1 . Part Schematics Acquired 1 | . . . 1 . Parts Damaged . | . . . . . Bothacking | -11 -10 -10 -9 -9 ------------ Run | Yrd Mat Min Mat Min Used RIF Installer . | . . . . . Robots Hacked . | . . . . . Non-combat . | . . . . . Combat . | . . . . . Robot Hacks Applied . | . . . . . Relay Couplers Released . | . . . . . Fabnet Peak Effective % . | . . . . . Robots Rewired . | . . . . . Allies Hacked . | . . . . . Hacks Repelled . | . . . . . Allies | -11 -10 -10 -9 -9 -------- Run | Yrd Mat Min Mat Min Total Allies . | . . . . . Largest Group . | . . . . . Highest-Rated Group . | . . . . . Highest-Rated Ally . | . . . . . Total Orders . | . . . . . Ally Attacks . | . . . . . Total Damage . | . . . . . Kills . | . . . . . Allies Corrupted . | . . . . . Allies Melted . | . . . . . Intel | -11 -10 -10 -9 -9 ------- Run | Yrd Mat Min Mat Min Active Infowar (turns) . | . . . . . Robot Analysis Total . | . . . . . Derelict Logs Recovered 1 | . . 1 . . Drone Launches 16 | . . . 16 . Drone Recoveries . | . . . . . Exploration | -11 -10 -10 -9 -9 ------------- Run | Yrd Mat Min Mat Min Turns Passed 1927 | 58 722 246 759 142 Spaces Moved 1485 | 49 589 235 504 108 Core 14 | 11 . . . 3 Treads . | . . . . . Legs . | . . . . . Wheels 1471 | 38 589 235 504 105 Hover . | . . . . . Flight . | . . . . . Fastest Speed 50 | 50 100 100 100 110 Average Speed 106 | 89 101 100 112 124 Slowest Speed 450 | 100 115 100 115 450 Overloaded Moves . | . . . . . Propulsion Burnouts . | . . . . . Robots Hopped . | . . . . . Potential Cave-ins . | . . . . . Cave-ins Triggered . | . . . . . Exploration Rate (%) 48 | 4 84 73 49 31 Regions Visited 4 Branch Regions 2 Pre-discovered Areas 1 | . . 1 . . Known Exits Taken . | . . . . . Unknown Exits Taken 4 | 1 1 1 1 . Scrap Searched 2 | . . 2 . . Spaces Dug . | . . . . . Terrain Destroyed 285 | . 54 9 189 33 Melee . | . . . . . Projectile . | . . . . . AOE 285 | . 54 9 189 33 Terrain Rammed . | . . . . . Walls Destroyed . | . . . . . Machines Disabled . | . . . . . Actions | -11 -10 -10 -9 -9 --------- Run | Yrd Mat Min Mat Min Total 1718 | 62 667 244 632 113 Wait 86 | . 20 . 65 1 Move 1481 | 48 588 234 503 108 Hop . | . . . . . Pick Up 30 | 7 15 2 6 . Fast Attach 3 | 3 . . . . Attach 17 | 3 3 3 8 . Detach 4 | . . 1 3 . Swap 9 | . 5 1 3 . Drop 16 | 1 9 2 3 1 Fire 72 | . 27 1 41 3 Melee . | . . . . . Ram . | . . . . . Kick . | . . . . . Crush . | . . . . . Escape Stasis . | . . . . . Rewire . | . . . . . Trap . | . . . . . Miscellaneous . | . . . . . Route ------- -11/Scrapyard -10/Materials (discovered 4 exits: *Mat x3 / *Min) -10/Mines -9/Materials (discovered 3 exits: [*Mat] / [*Min] / [*Sto]) -9/Mines History --------- Turn | Location | Event 8 | -11/Scrapyard | Discovered new exit (range 15) 59 | -11/Scrapyard | Entered Materials 232 | -10/Materials | Discovered new exit (range 10) 303 | -10/Materials | Build established: Mutant 484 | -10/Materials | Discovered new exit (range 9) 632 | -10/Materials | Discovered new exit (range 15) 751 | -10/Materials | Discovered new exit (range 16) 781 | -10/Materials | Entered Mines 908 | -10/Mines | Received a Rocket Launcher from a helpful Derelict 959 | -10/Mines | Learned location of Zion (-7) 1001 | -10/Mines | Found the Drone Emporium 1008 | -10/Mines | Found Prototype Device 1017 | -10/Mines | Discovered new exit (range 10) 1027 | -10/Mines | Entered Materials 1027 | -9/Materials | Evolved 2 slots: Power x1, Utility x1 1029 | -9/Materials | Identified Decoy Drone Bay 1136 | -9/Materials | Lost 16 allies 1222 | -9/Materials | Discovered new exit (range 16) 1291 | -9/Materials | Discovered new exit (range 5) 1496 | -9/Materials | Discovered new exit (range 15) 1695 | -9/Materials | Lost 3 parts (1p1u1w) 1786 | -9/Materials | Entered Mines 1882 | -9/Mines | Assembled infested the area 1922 | -9/Mines | Core integrity fell below 50% 1927 | -9/Mines | Core integrity fell below 20% 1928 | -9/Mines | Destroyed by D-53 Grenadier with Mini Grenade Launcher Last Messages --------------- Destroyed Flight Unit. S-10 Pest destroyed. Com. Wheel destroyed. Destroyed Com. Wheel. Acquired 5 matter. K-01 Serf collects debris. Plasma Injector explodes. K-01 Serf destroyed. Dropped Lgt. Assault Rifle. ALERT: Infestation in the mines, dispatching Demolisher response squad. C-45 Heavy ARC bursts open, deploying its payload. D-53 Grenadier unfolds itself. Ion Engine destroyed. Wheel destroyed. Pressure Siphon disabled. The unstable cave ceiling collapses. Grenade Launcher+ destroyed. Cooling System destroyed. Map ----- +----------------------------------------------------+ | ??????????????????????# #?????? | | ??????????????????????# #?????? | | ??????????????????????### ############# #?????? | | ????????????????????????# #???????????## #?????? | | ????????????????????????# #????????????# ##????? | | ????????????????????????# #????????????# #????? | | ????????????????????????# ##########???# #????? | | ????????????????????????# #???## ##????? | | ????????????????????????########## #????# ##?????? | | ?????????????????????????????????# #????# #??????? | | ?????????????????????????????????# #????# #??????? | | ?????????????????????????????????# #????# ####???? | | ?????????????????????????????????# #????# [ #???? | | ?????????????????????????????????# #????#### #???? | | ?????????????????????????????????# ##?????# ??? | | ????????????????????????????????## ##??? ? | | ???????????????????????????????## #??# | | ??????????????????????????????## g #??# | | ?????????????????????#????????# ##?# *% | | ?????????????????????# ????##?# #?# | | ?????????????????????# #### ### #?# | | ?????????????????????# ## ##?# | | ?????????????????????# ##?##??# | | ?????????????????????# ##?????### ## | | ?????????????????????# ##??????# ??### | | ?????????????????????# @ d#??????# ????? | | ??????????????????#t d% #?? ????? | | ????????????? " ????? | | ???????????# """ ## " " ### ????? | | ??????????? ? """??## #####???????????? | | ?????????????????"?????#### # #???????????????? | | ??????????????????????????# ## ##???????????????? | | ??????????????????????????# #?##????????????????? | | ??????????????????????????# #???????????????????? | | ?????????????????????????? #???????????????????? | | ?????????????????????????? #???????????????????? | | ??????????????????????????####???????????????????? | | ?????????????????????????????????????????????????? | | ?????????????????????????????????????????????????? | | ?????????????????????????????????????????????????? | | | | | | | | | | | | | | | | | | | | | +----------------------------------------------------+ Best States ------------- Heat Dissipation 50 Energy Generation 15 Energy Capacity 275 Matter Stores 300 Matter Capacity 300 Sight Range 16 Terrain Scan Density 10 Armor Coverage 225 Evasion (%) 50 Targeting Accuracy 5 Offensive Hacking 10 Item Schematics ----------------- Grenade Launcher | -9/Materials | Scanalyzed Robot Schematics ------------------ None Fabricated ------------ Nothing Repaired ---------- Nothing Studied --------- Grenade Launcher | -9/Materials | Hacked Alien Tech Used ----------------- None Achievements -------------- Plot Armor Release The Drones! Challenges ------------ None Game ------ Seed LinearQuantumRecalibrator Manual? 0 Play Time 00:21:06 Cumulative 3.6 hours Start 2026.08.03 @ 19:31:43 End 2026.08.03 @ 19:52:17 Sessions 1 Manual Loads 0 Difficulty Rogue Special Mode None Game No. 8 Rogue 2 Adventurer 6 Explorer 0 Win Type - Total 0 Types 0/0/0/0/0/0/0/0/0/0 Lore% 3 Gallery% 7 Achievement% 10 Wizard Run 0 Options --------- Layout 1 ASCII 1 Keyboard 0 Movement Mouse Keybinds 0 Fullscreen 2 Font 24/Smallcaps Map View 50x35 Zoom Use 0% Tactical HUD 0 Map Filters NONE Filters NONE Steam 1 RUN: e480c84c-8ebf-4ecd-938d-f1784a65c9f2